[Event "Late-Titled-Tuesday-Blitz-September-12-2023"]
[Site "Chess.com"]
[Date "2023.09.12"]
[Round "10"]
[White "picturesquecheck"]
[Black "chosenpr"]
[Result "1-0"]
[WhiteElo "2343"]
[BlackElo "2359"]
[TimeControl "180+1"]
[EndTime "15:47:18 PDT"]
[Termination "picturesquecheck won by resignation"]

1. e4 {[%clk 0:03:00.9]} 1... e5 {[%clk 0:02:54.7]} 2. Nf3 {[%clk 0:02:58.5]}
2... Nf6 {[%clk 0:02:55]} 3. Nxe5 {[%clk 0:02:56.5]} 3... d6 {[%clk 0:02:55.1]}
4. Nf3 {[%clk 0:02:55.4]} 4... Nxe4 {[%clk 0:02:55.4]} 5. Nc3 {[%clk 0:02:56.2]}
5... Nxc3 {[%clk 0:02:55]} 6. dxc3 {[%clk 0:02:57.1]} 6... Be7 {[%clk
0:02:55.4]} 7. Be3 {[%clk 0:02:56.4]} 7... O-O {[%clk 0:02:55.5]} 8. Qd2 {[%clk
0:02:55.9]} 8... Nd7 {[%clk 0:02:48.9]} 9. O-O-O {[%clk 0:02:54.4]} 9... Nf6
{[%clk 0:02:33.7]} 10. Bd3 {[%clk 0:02:53]} 10... c5 {[%clk 0:02:32.5]} 11. Kb1
{[%clk 0:02:50.5]} 11... Qa5 {[%clk 0:02:30.2]} 12. c4 {[%clk 0:02:48.4]} 12...
Qxd2 {[%clk 0:02:21.5]} 13. Rxd2 {[%clk 0:02:47.8]} 13... Ng4 {[%clk 0:02:18.6]}
14. Bf4 {[%clk 0:02:44]} 14... Be6 {[%clk 0:02:13.5]} 15. h3 {[%clk 0:02:39.8]}
15... Nf6 {[%clk 0:02:13.4]} 16. Rhd1 {[%clk 0:02:38.6]} 16... d5 {[%clk
0:02:11]} 17. Ng5 {[%clk 0:02:30.1]} 17... Nd7 {[%clk 0:01:44.5]} 18. cxd5
{[%clk 0:02:19.7]} 18... Bxg5 {[%clk 0:01:37.9]} 19. Bxg5 {[%clk 0:02:17.9]}
19... Bxd5 {[%clk 0:01:35.7]} 20. Bxh7+ {[%clk 0:02:15.7]} 20... Kxh7 {[%clk
0:01:35.7]} 21. Rxd5 {[%clk 0:02:16.6]} 21... Nb6 {[%clk 0:01:28.6]} 22. Rxc5
{[%clk 0:02:15.7]} 22... Rac8 {[%clk 0:01:28.2]} 23. Be3 {[%clk 0:02:15.5]}
23... Nc4 {[%clk 0:01:25.6]} 24. Rxc8 {[%clk 0:02:13.9]} 24... Rxc8 {[%clk
0:01:25]} 25. Rd7 {[%clk 0:02:11.9]} 25... Re8 {[%clk 0:01:17]} 26. b3 {[%clk
0:02:04.6]} 26... Nxe3 {[%clk 0:01:14.5]} 27. fxe3 {[%clk 0:02:04.6]} 27... Rxe3
{[%clk 0:01:15.3]} 28. Rxb7 {[%clk 0:02:00.7]} 28... Kg6 {[%clk 0:01:14.3]} 29.
Rxa7 {[%clk 0:02:00.2]} 29... Re2 {[%clk 0:01:14.2]} 30. g4 {[%clk 0:01:58.9]}
30... Rh2 {[%clk 0:01:13.2]} 31. a4 {[%clk 0:01:56.7]} 31... Rxh3 {[%clk
0:01:13.9]} 32. a5 {[%clk 0:01:57.3]} 32... Rh8 {[%clk 0:01:13]} 33. a6 {[%clk
0:01:57.1]} 33... Rb8 {[%clk 0:01:11.1]} 34. Rb7 {[%clk 0:01:57.1]} 34... Ra8
{[%clk 0:01:11.4]} 35. a7 {[%clk 0:01:54.5]} 35... Kf6 {[%clk 0:01:10.9]} 36. b4
{[%clk 0:01:54.8]} 36... Ke6 {[%clk 0:01:10.5]} 37. b5 {[%clk 0:01:55.3]} 37...
Kd6 {[%clk 0:01:10]} 38. b6 {[%clk 0:01:55.5]} 38... Kc6 {[%clk 0:01:10.2]} 39.
Rb8 {[%clk 0:01:54.9]} 1-0

[Event "Late-Titled-Tuesday-Blitz-September-12-2023"]
[Site "Chess.com"]
[Date "2023.09.12"]
[Round "10"]
[White "GMJustin"]
[Black "CuteSheepCloud"]
[Result "0-1"]
[WhiteElo "2210"]
[BlackElo "2634"]
[TimeControl "180+1"]
[EndTime "15:47:37 PDT"]
[Termination "CuteSheepCloud won on time"]

1. d4 {[%clk 0:02:50.4]} 1... Nf6 {[%clk 0:02:59.6]} 2. c4 {[%clk 0:02:49.2]}
2... e6 {[%clk 0:02:59.7]} 3. Nf3 {[%clk 0:02:47.1]} 3... Bb4+ {[%clk
0:02:58.4]} 4. Bd2 {[%clk 0:02:42]} 4... a5 {[%clk 0:02:58]} 5. Qc2 {[%clk
0:02:33]} 5... O-O {[%clk 0:02:57.6]} 6. e4 {[%clk 0:02:23.8]} 6... d6 {[%clk
0:02:56.9]} 7. Bd3 {[%clk 0:02:22.1]} 7... h6 {[%clk 0:02:55.5]} 8. O-O {[%clk
0:02:19.3]} 8... Nbd7 {[%clk 0:02:53.2]} 9. Bc1 {[%clk 0:02:14.9]} 9... a4
{[%clk 0:02:51.9]} 10. a3 {[%clk 0:02:12]} 10... Ba5 {[%clk 0:02:52.2]} 11. Qxa4
{[%clk 0:02:10.2]} 11... c5 {[%clk 0:02:52.8]} 12. d5 {[%clk 0:02:02.5]} 12...
Nb6 {[%clk 0:02:52]} 13. Qc2 {[%clk 0:02:00.8]} 13... exd5 {[%clk 0:02:52.2]}
14. exd5 {[%clk 0:01:59.4]} 14... Bg4 {[%clk 0:02:52.1]} 15. Nbd2 {[%clk
0:01:28.4]} 15... Nbd7 {[%clk 0:02:49.3]} 16. h3 {[%clk 0:01:24.9]} 16... Bxd2
{[%clk 0:02:47.7]} 17. Nxd2 {[%clk 0:01:19.8]} 17... Bh5 {[%clk 0:02:48]} 18. g4
{[%clk 0:01:13.7]} 18... Bg6 {[%clk 0:02:43.2]} 19. Bxg6 {[%clk 0:01:10.7]}
19... fxg6 {[%clk 0:02:44.1]} 20. Qxg6 {[%clk 0:01:10]} 20... Ne5 {[%clk
0:02:42.2]} 21. Qc2 {[%clk 0:01:08.9]} 21... Qd7 {[%clk 0:02:41.4]} 22. f3
{[%clk 0:00:51.6]} 22... Rae8 {[%clk 0:02:25.9]} 23. Kg2 {[%clk 0:00:21.6]}
23... h5 {[%clk 0:02:22.9]} 24. g5 {[%clk 0:00:18.2]} 24... Nh7 {[%clk
0:02:23.2]} 25. h4 {[%clk 0:00:07.7]} 25... Rf4 {[%clk 0:02:21.7]} 26. Rh1
{[%clk 0:00:02.5]} 26... Nxf3 {[%clk 0:02:10.5]} 0-1

[Event "Late-Titled-Tuesday-Blitz-September-12-2023"]
[Site "Chess.com"]
[Date "2023.09.12"]
[Round "10"]
[White "MathiasCasalaspro"]
[Black "Schwindle"]
[Result "1-0"]
[WhiteElo "2323"]
[BlackElo "2424"]
[TimeControl "180+1"]
[EndTime "15:47:43 PDT"]
[Termination "MathiasCasalaspro won by resignation"]

1. e4 {[%clk 0:03:00.9]} 1... e6 {[%clk 0:03:00.2]} 2. d4 {[%clk 0:03:00.3]}
2... d5 {[%clk 0:03:00.5]} 3. Nc3 {[%clk 0:03:00.9]} 3... Nf6 {[%clk 0:03:00.7]}
4. Bg5 {[%clk 0:02:59.4]} 4... Be7 {[%clk 0:03:00.8]} 5. e5 {[%clk 0:02:59]}
5... Nfd7 {[%clk 0:03:01.2]} 6. h4 {[%clk 0:02:59.7]} 6... h6 {[%clk 0:03:01.5]}
7. Bxe7 {[%clk 0:02:59.2]} 7... Qxe7 {[%clk 0:03:02.3]} 8. h5 {[%clk 0:02:56.9]}
8... a6 {[%clk 0:02:56.9]} 9. Qg4 {[%clk 0:02:55.8]} 9... f5 {[%clk 0:02:42.8]}
10. exf6 {[%clk 0:02:50.2]} 10... Nxf6 {[%clk 0:02:39.6]} 11. Qg6+ {[%clk
0:02:49.8]} 11... Qf7 {[%clk 0:02:39.5]} 12. Qxf7+ {[%clk 0:02:44.2]} 12... Kxf7
{[%clk 0:02:40.4]} 13. Nf3 {[%clk 0:02:45]} 13... Nbd7 {[%clk 0:02:28.8]} 14.
O-O-O {[%clk 0:02:43]} 14... Rf8 {[%clk 0:02:23.7]} 15. Bd3 {[%clk 0:02:38.2]}
15... Kg8 {[%clk 0:02:20.2]} 16. Rde1 {[%clk 0:02:31.1]} 16... Re8 {[%clk
0:02:08.2]} 17. Bg6 {[%clk 0:02:30]} 17... Re7 {[%clk 0:02:08.4]} 18. Ne5 {[%clk
0:02:28.7]} 18... Nxe5 {[%clk 0:02:08.4]} 19. Rxe5 {[%clk 0:02:29.5]} 19... Bd7
{[%clk 0:01:52.9]} 20. f3 {[%clk 0:02:26.6]} 20... Be8 {[%clk 0:01:32.5]} 21.
Rhe1 {[%clk 0:02:25.4]} 21... Bxg6 {[%clk 0:01:29.2]} 22. hxg6 {[%clk
0:02:26.3]} 22... Rae8 {[%clk 0:01:28.5]} 23. Ne2 {[%clk 0:02:23.9]} 23... Nd7
{[%clk 0:01:19.8]} 24. Re3 {[%clk 0:01:42.1]} 24... c5 {[%clk 0:01:15.4]} 25. c3
{[%clk 0:01:40.2]} 25... cxd4 {[%clk 0:01:04.3]} 26. cxd4 {[%clk 0:01:41.1]}
26... e5 {[%clk 0:00:56.9]} 27. Nf4 {[%clk 0:01:37.2]} 27... Re6 {[%clk
0:00:37.3]} 28. Nxe6 {[%clk 0:01:34.7]} 1-0

[Event "Late-Titled-Tuesday-Blitz-September-12-2023"]
[Site "Chess.com"]
[Date "2023.09.12"]
[Round "10"]
[White "ChEsper99"]
[Black "Dewarfd"]
[Result "0-1"]
[WhiteElo "2226"]
[BlackElo "2213"]
[TimeControl "180+1"]
[EndTime "15:48:06 PDT"]
[Termination "Dewarfd won on time"]

1. e4 {[%clk 0:03:00.9]} 1... e5 {[%clk 0:02:59.7]} 2. Nf3 {[%clk 0:02:58.4]}
2... Nc6 {[%clk 0:02:59.4]} 3. d4 {[%clk 0:02:59.3]} 3... exd4 {[%clk
0:02:59.8]} 4. Nxd4 {[%clk 0:03:00.2]} 4... Nf6 {[%clk 0:03:00]} 5. Nc3 {[%clk
0:03:00.8]} 5... Bb4 {[%clk 0:03:00]} 6. Nxc6 {[%clk 0:02:59.8]} 6... bxc6
{[%clk 0:03:00.7]} 7. Bd3 {[%clk 0:02:18.2]} 7... O-O {[%clk 0:02:59.8]} 8. O-O
{[%clk 0:02:13.8]} 8... d5 {[%clk 0:02:59.4]} 9. Bg5 {[%clk 0:02:04.3]} 9...
Bxc3 {[%clk 0:02:52.7]} 10. bxc3 {[%clk 0:02:00.9]} 10... dxe4 {[%clk
0:02:52.3]} 11. Bxf6 {[%clk 0:01:31.7]} 11... Qxf6 {[%clk 0:02:50.7]} 12. Bxe4
{[%clk 0:01:31.4]} 12... Qxc3 {[%clk 0:02:21.9]} 13. Re1 {[%clk 0:01:17]} 13...
Be6 {[%clk 0:02:14.2]} 14. Re3 {[%clk 0:01:05.1]} 14... Qf6 {[%clk 0:01:53.3]}
15. Bxc6 {[%clk 0:00:11.5]} 15... Bg4 {[%clk 0:01:41.8]} 16. Bf3 {[%clk
0:00:07.2]} 16... Rad8 {[%clk 0:01:38.1]} 17. Rd3 {[%clk 0:00:04.3]} 17... Bxf3
{[%clk 0:01:34.8]} 18. gxf3 {[%clk 0:00:01.7]} 18... Rxd3 {[%clk 0:01:33.6]} 19.
cxd3 {[%clk 0:00:01.4]} 19... Rd8 {[%clk 0:01:33.2]} 20. Rc1 {[%clk 0:00:01.2]}
20... Qg6+ {[%clk 0:01:29.9]} 0-1

[Event "Late-Titled-Tuesday-Blitz-September-12-2023"]
[Site "Chess.com"]
[Date "2023.09.12"]
[Round "10"]
[White "dennisodessa"]
[Black "GAO"]
[Result "1-0"]
[WhiteElo "2512"]
[BlackElo "2338"]
[TimeControl "180+1"]
[EndTime "15:48:08 PDT"]
[Termination "dennisodessa won by resignation"]

1. d4 {[%clk 0:02:56.7]} 1... Nf6 {[%clk 0:02:55.1]} 2. c4 {[%clk 0:02:53]} 2...
g6 {[%clk 0:02:54.9]} 3. Nc3 {[%clk 0:02:49.1]} 3... Bg7 {[%clk 0:02:55.1]} 4.
e4 {[%clk 0:02:49.6]} 4... d6 {[%clk 0:02:53.8]} 5. f3 {[%clk 0:02:50.3]} 5...
O-O {[%clk 0:02:52.5]} 6. Be3 {[%clk 0:02:50.5]} 6... e5 {[%clk 0:02:52.6]} 7.
d5 {[%clk 0:02:48]} 7... a5 {[%clk 0:02:51.9]} 8. Bd3 {[%clk 0:02:47.4]} 8...
Na6 {[%clk 0:02:51.9]} 9. Nge2 {[%clk 0:02:47.6]} 9... Nc5 {[%clk 0:02:51.4]}
10. Bc2 {[%clk 0:02:47]} 10... Bd7 {[%clk 0:02:48.8]} 11. Qd2 {[%clk 0:02:47.5]}
11... Nh5 {[%clk 0:02:47]} 12. g4 {[%clk 0:02:47.3]} 12... Nf4 {[%clk
0:02:44.5]} 13. Nxf4 {[%clk 0:02:47.9]} 13... exf4 {[%clk 0:02:43.9]} 14. Bxf4
{[%clk 0:02:48.8]} 14... a4 {[%clk 0:02:36.9]} 15. a3 {[%clk 0:02:31.7]} 15...
Re8 {[%clk 0:02:28.6]} 16. O-O-O {[%clk 0:02:30.8]} 16... Qb8 {[%clk 0:02:23.1]}
17. Nb5 {[%clk 0:02:26]} 17... Bxb5 {[%clk 0:01:54.2]} 18. cxb5 {[%clk
0:02:26.9]} 18... Qa7 {[%clk 0:01:54]} 19. Kb1 {[%clk 0:02:01.8]} 19... Qb6
{[%clk 0:01:43.9]} 20. Bd3 {[%clk 0:02:00.1]} 20... Ra5 {[%clk 0:01:40.1]} 21.
Be3 {[%clk 0:01:59.6]} 21... f5 {[%clk 0:01:20.8]} 22. gxf5 {[%clk 0:01:57]}
22... gxf5 {[%clk 0:01:21.7]} 23. Rhg1 {[%clk 0:01:55.8]} 23... Kh8 {[%clk
0:01:20.5]} 24. Rxg7 {[%clk 0:01:53.1]} 24... Kxg7 {[%clk 0:01:17.7]} 25. Bd4+
{[%clk 0:01:53.7]} 25... Kf7 {[%clk 0:01:05]} 26. Rg1 {[%clk 0:01:40.7]} 26...
Ke7 {[%clk 0:01:02.4]} 27. Qg5+ {[%clk 0:01:34.3]} 27... Kd7 {[%clk 0:00:58.4]}
28. Qxf5+ {[%clk 0:01:35.2]} 28... Ne6 {[%clk 0:00:41.5]} 1-0

[Event "Late-Titled-Tuesday-Blitz-September-12-2023"]
[Site "Chess.com"]
[Date "2023.09.12"]
[Round "10"]
[White "rdarruda"]
[Black "Miguelitro69"]
[Result "1-0"]
[WhiteElo "2499"]
[BlackElo "2289"]
[TimeControl "180+1"]
[EndTime "15:48:22 PDT"]
[Termination "rdarruda won by resignation"]

1. d4 {[%clk 0:02:52.7]} 1... Nf6 {[%clk 0:02:58.7]} 2. Nf3 {[%clk 0:02:52.6]}
2... d6 {[%clk 0:02:56.8]} 3. g3 {[%clk 0:02:52.2]} 3... g6 {[%clk 0:02:57.3]}
4. Bg2 {[%clk 0:02:52.4]} 4... Bg7 {[%clk 0:02:58.1]} 5. O-O {[%clk 0:02:52.6]}
5... O-O {[%clk 0:02:59]} 6. Nc3 {[%clk 0:02:52.6]} 6... c5 {[%clk 0:02:58.8]}
7. dxc5 {[%clk 0:02:51.6]} 7... dxc5 {[%clk 0:02:49.8]} 8. Qxd8 {[%clk
0:02:51.5]} 8... Rxd8 {[%clk 0:02:49.9]} 9. Be3 {[%clk 0:02:51.9]} 9... Nbd7
{[%clk 0:02:47.3]} 10. Rad1 {[%clk 0:02:48.4]} 10... b6 {[%clk 0:02:16.3]} 11.
Ne5 {[%clk 0:02:46.1]} 11... Rb8 {[%clk 0:02:00.2]} 12. Nc6 {[%clk 0:02:45.5]}
12... Ba6 {[%clk 0:01:48.5]} 13. Nxd8 {[%clk 0:02:43.9]} 13... Rxd8 {[%clk
0:01:48.1]} 14. Bc6 {[%clk 0:02:36.1]} 14... Bc8 {[%clk 0:01:39]} 15. Nd5 {[%clk
0:02:22.2]} 15... Nxd5 {[%clk 0:01:29.2]} 16. Rxd5 {[%clk 0:02:23.1]} 16... e6
{[%clk 0:01:23.8]} 17. Rd2 {[%clk 0:02:16.9]} 17... Kf8 {[%clk 0:01:22.2]} 18.
Rfd1 {[%clk 0:02:14.9]} 18... Ke7 {[%clk 0:01:21.6]} 19. c3 {[%clk 0:02:07.8]}
19... Be5 {[%clk 0:01:17.6]} 20. Bf4 {[%clk 0:02:02.5]} 20... Bxf4 {[%clk
0:01:01.1]} 21. gxf4 {[%clk 0:02:03.4]} 21... Ke8 {[%clk 0:01:00]} 22. e4 {[%clk
0:01:55.8]} 22... Ke7 {[%clk 0:01:00]} 23. h4 {[%clk 0:01:52.5]} 23... f6 {[%clk
0:00:59.8]} 24. Kg2 {[%clk 0:01:50.9]} 24... h6 {[%clk 0:00:59.4]} 25. Kg3
{[%clk 0:01:50.8]} 25... g5 {[%clk 0:00:59.2]} 26. fxg5 {[%clk 0:01:49.7]} 26...
hxg5 {[%clk 0:00:56.4]} 27. hxg5 {[%clk 0:01:49.5]} 27... fxg5 {[%clk
0:00:56.3]} 28. e5 {[%clk 0:01:43.6]} 28... a6 {[%clk 0:00:40.2]} 29. a4 {[%clk
0:01:41.5]} 29... a5 {[%clk 0:00:38.3]} 30. c4 {[%clk 0:01:40.4]} 30... Ke8
{[%clk 0:00:22]} 31. Kg4 {[%clk 0:01:38.8]} 31... Ke7 {[%clk 0:00:22]} 32. Bxd7
{[%clk 0:01:38.8]} 32... Bxd7 {[%clk 0:00:21.2]} 33. Rxd7+ {[%clk 0:01:36.9]}
33... Rxd7 {[%clk 0:00:20]} 34. Rxd7+ {[%clk 0:01:37.8]} 34... Kxd7 {[%clk
0:00:20.1]} 35. Kxg5 {[%clk 0:01:38.7]} 35... b5 {[%clk 0:00:19.2]} 36. axb5
{[%clk 0:01:34.3]} 36... a4 {[%clk 0:00:19.4]} 37. Kf6 {[%clk 0:01:33.5]} 37...
a3 {[%clk 0:00:18.4]} 38. bxa3 {[%clk 0:01:32.8]} 1-0

[Event "Late-Titled-Tuesday-Blitz-September-12-2023"]
[Site "Chess.com"]
[Date "2023.09.12"]
[Round "10"]
[White "Arteler"]
[Black "Alex_Banzea"]
[Result "1-0"]
[WhiteElo "2510"]
[BlackElo "2654"]
[TimeControl "180+1"]
[EndTime "15:48:30 PDT"]
[Termination "Arteler won by resignation"]

1. e4 {[%clk 0:03:00]} 1... c6 {[%clk 0:03:00.3]} 2. d4 {[%clk 0:02:59.4]} 2...
d5 {[%clk 0:03:01.2]} 3. exd5 {[%clk 0:03:00.3]} 3... cxd5 {[%clk 0:03:02.1]} 4.
c4 {[%clk 0:03:01.2]} 4... Nf6 {[%clk 0:03:02.4]} 5. Nc3 {[%clk 0:03:02]} 5...
e6 {[%clk 0:03:03]} 6. Nf3 {[%clk 0:03:01.1]} 6... Be7 {[%clk 0:03:03.2]} 7.
cxd5 {[%clk 0:02:59.4]} 7... exd5 {[%clk 0:03:02.3]} 8. Bd3 {[%clk 0:02:58.2]}
8... Bg4 {[%clk 0:03:00]} 9. h3 {[%clk 0:02:57.9]} 9... Bh5 {[%clk 0:02:56.1]}
10. O-O {[%clk 0:02:58.2]} 10... O-O {[%clk 0:02:55.8]} 11. g4 {[%clk
0:02:49.8]} 11... Bg6 {[%clk 0:02:55.6]} 12. Ne5 {[%clk 0:02:50.4]} 12... Nc6
{[%clk 0:02:37.3]} 13. Nxc6 {[%clk 0:02:29.4]} 13... bxc6 {[%clk 0:02:31]} 14.
Bf4 {[%clk 0:02:27.9]} 14... Bd6 {[%clk 0:02:24.7]} 15. Be5 {[%clk 0:02:28.1]}
15... Re8 {[%clk 0:02:16.5]} 16. Re1 {[%clk 0:02:25]} 16... Bb4 {[%clk
0:02:11.5]} 17. Bxg6 {[%clk 0:02:17.5]} 17... hxg6 {[%clk 0:02:09.7]} 18. Qa4
{[%clk 0:02:17.6]} 18... Bxc3 {[%clk 0:02:07.9]} 19. bxc3 {[%clk 0:02:18.5]}
19... Ne4 {[%clk 0:02:07.7]} 20. c4 {[%clk 0:02:10.7]} 20... Qh4 {[%clk
0:02:06.7]} 21. Rxe4 {[%clk 0:01:52.4]} 21... dxe4 {[%clk 0:02:07.6]} 22. Qxc6
{[%clk 0:01:52.6]} 22... Qxh3 {[%clk 0:01:56.9]} 23. Qxe4 {[%clk 0:01:52.9]}
23... Qc3 {[%clk 0:01:56.5]} 24. Rb1 {[%clk 0:01:14.5]} 24... Qxc4 {[%clk
0:01:55.8]} 25. Rb7 {[%clk 0:00:53.3]} 25... Qe6 {[%clk 0:01:18.5]} 26. Qf3
{[%clk 0:00:50.3]} 26... Qxa2 {[%clk 0:01:15.9]} 27. d5 {[%clk 0:00:44.6]} 27...
f6 {[%clk 0:00:59]} 28. Rxg7+ {[%clk 0:00:42.1]} 28... Kxg7 {[%clk 0:00:45.1]}
29. Qxf6+ {[%clk 0:00:41.8]} 1-0

[Event "Late-Titled-Tuesday-Blitz-September-12-2023"]
[Site "Chess.com"]
[Date "2023.09.12"]
[Round "10"]
[White "KNVB"]
[Black "Langua_Chess"]
[Result "1-0"]
[WhiteElo "2750"]
[BlackElo "2489"]
[TimeControl "180+1"]
[EndTime "15:48:33 PDT"]
[Termination "KNVB won by resignation"]

1. c4 {[%clk 0:03:00.9]} 1... c6 {[%clk 0:02:46]} 2. d4 {[%clk 0:02:58.2]} 2...
d5 {[%clk 0:02:46.2]} 3. Nf3 {[%clk 0:02:57.8]} 3... Nf6 {[%clk 0:02:46.3]} 4.
Nbd2 {[%clk 0:02:57.1]} 4... Bf5 {[%clk 0:02:41.7]} 5. Nh4 {[%clk 0:02:55.2]}
5... Bg4 {[%clk 0:02:27.8]} 6. h3 {[%clk 0:02:41.3]} 6... Bh5 {[%clk 0:02:28]}
7. g4 {[%clk 0:02:41.3]} 7... Bg6 {[%clk 0:02:28.5]} 8. g5 {[%clk 0:02:26.1]}
8... Ne4 {[%clk 0:02:25.4]} 9. Nxg6 {[%clk 0:02:24.1]} 9... hxg6 {[%clk
0:02:22.6]} 10. Nxe4 {[%clk 0:02:20.8]} 10... dxe4 {[%clk 0:02:23.3]} 11. Bg2
{[%clk 0:02:12.2]} 11... e5 {[%clk 0:02:19.4]} 12. dxe5 {[%clk 0:01:22.6]} 12...
Bb4+ {[%clk 0:01:48.3]} 13. Bd2 {[%clk 0:01:21.4]} 13... Qxg5 {[%clk 0:01:49.1]}
14. Bxb4 {[%clk 0:01:08.1]} 14... Qxg2 {[%clk 0:01:47.7]} 15. Qd6 {[%clk
0:01:08.9]} 15... c5 {[%clk 0:00:51.5]} 16. O-O-O {[%clk 0:00:43.7]} 1-0

[Event "Late-Titled-Tuesday-Blitz-September-12-2023"]
[Site "Chess.com"]
[Date "2023.09.12"]
[Round "10"]
[White "Bauman_Guy"]
[Black "RichardLeyvaP"]
[Result "1-0"]
[WhiteElo "2897"]
[BlackElo "2635"]
[TimeControl "180+1"]
[EndTime "15:48:40 PDT"]
[Termination "Bauman_Guy won by resignation"]

1. e4 {[%clk 0:03:00.9]} 1... e5 {[%clk 0:02:59.4]} 2. Nf3 {[%clk 0:03:01.1]}
2... Nc6 {[%clk 0:02:59.6]} 3. Bb5 {[%clk 0:03:01.8]} 3... a6 {[%clk 0:03:00]}
4. Ba4 {[%clk 0:03:02.3]} 4... b5 {[%clk 0:03:00]} 5. Bb3 {[%clk 0:03:02.3]}
5... Bb7 {[%clk 0:03:00.4]} 6. O-O {[%clk 0:03:02.4]} 6... Nf6 {[%clk
0:03:00.7]} 7. d3 {[%clk 0:03:02.7]} 7... Bc5 {[%clk 0:03:00.2]} 8. a4 {[%clk
0:03:03.1]} 8... d6 {[%clk 0:02:59]} 9. Nc3 {[%clk 0:03:03.1]} 9... b4 {[%clk
0:02:56.2]} 10. Nd5 {[%clk 0:03:03.1]} 10... Na5 {[%clk 0:02:55.7]} 11. Nxf6+
{[%clk 0:03:02.3]} 11... Qxf6 {[%clk 0:02:55.9]} 12. Ba2 {[%clk 0:03:03.2]}
12... O-O {[%clk 0:02:43.9]} 13. Be3 {[%clk 0:03:02.7]} 13... Rab8 {[%clk
0:02:23.5]} 14. Bxc5 {[%clk 0:02:59.6]} 14... dxc5 {[%clk 0:02:24.4]} 15. Nd2
{[%clk 0:02:59.9]} 15... Bc8 {[%clk 0:02:18.3]} 16. Nc4 {[%clk 0:02:56.4]} 16...
Nc6 {[%clk 0:02:17.5]} 17. Ne3 {[%clk 0:02:55.7]} 17... Nd4 {[%clk 0:02:17.4]}
18. c3 {[%clk 0:02:55.2]} 18... Ne6 {[%clk 0:02:15.5]} 19. Nd5 {[%clk
0:02:52.6]} 19... Qd8 {[%clk 0:02:14.8]} 20. Bc4 {[%clk 0:02:51.8]} 20... a5
{[%clk 0:02:13.2]} 21. f4 {[%clk 0:02:47.5]} 21... c6 {[%clk 0:02:11]} 22. fxe5
{[%clk 0:02:47.7]} 22... cxd5 {[%clk 0:02:09]} 23. exd5 {[%clk 0:02:48.6]} 23...
Qg5 {[%clk 0:01:47]} 24. dxe6 {[%clk 0:02:45.8]} 24... Bxe6 {[%clk 0:01:46.2]}
25. Bxe6 {[%clk 0:02:39]} 25... fxe6 {[%clk 0:01:46]} 26. Qe2 {[%clk 0:02:38.4]}
26... h6 {[%clk 0:01:26.3]} 27. g3 {[%clk 0:02:31]} 27... Rbd8 {[%clk
0:01:24.1]} 28. Rae1 {[%clk 0:02:27.2]} 28... Rf5 {[%clk 0:01:19]} 29. Rxf5
{[%clk 0:02:21]} 29... Qxf5 {[%clk 0:01:19]} 30. Rd1 {[%clk 0:02:21.6]} 30...
Rd5 {[%clk 0:01:10.9]} 31. d4 {[%clk 0:02:21.4]} 31... bxc3 {[%clk 0:01:02.6]}
32. bxc3 {[%clk 0:02:20.9]} 32... cxd4 {[%clk 0:01:02]} 33. cxd4 {[%clk
0:02:21.1]} 33... Kh7 {[%clk 0:00:58.9]} 34. Qd3 {[%clk 0:02:07.9]} 34... Qxd3
{[%clk 0:00:55.5]} 35. Rxd3 {[%clk 0:02:08.8]} 35... Rd7 {[%clk 0:00:55.4]} 36.
Kf2 {[%clk 0:02:07.5]} 36... Kg6 {[%clk 0:00:50.3]} 37. Ke3 {[%clk 0:02:05]}
37... Kf5 {[%clk 0:00:50]} 38. Rd1 {[%clk 0:02:02]} 38... Rb7 {[%clk 0:00:48.9]}
39. Rf1+ {[%clk 0:02:02.2]} 39... Kg6 {[%clk 0:00:48.8]} 40. d5 {[%clk
0:01:45.7]} 40... exd5 {[%clk 0:00:45.2]} 41. Kd4 {[%clk 0:01:45.6]} 41... Rb4+
{[%clk 0:00:27.7]} 42. Kxd5 {[%clk 0:01:44.8]} 42... Rxa4 {[%clk 0:00:28.6]} 43.
e6 {[%clk 0:01:45.2]} 43... Ra2 {[%clk 0:00:26]} 44. e7 {[%clk 0:01:44]} 44...
Re2 {[%clk 0:00:21.9]} 45. Kd6 {[%clk 0:01:44.2]} 45... a4 {[%clk 0:00:21.7]}
46. Rf8 {[%clk 0:01:43]} 1-0

[Event "Late-Titled-Tuesday-Blitz-September-12-2023"]
[Site "Chess.com"]
[Date "2023.09.12"]
[Round "10"]
[White "artin10862"]
[Black "MagnusCarlsen"]
[Result "0-1"]
[WhiteElo "2977"]
[BlackElo "3219"]
[TimeControl "180+1"]
[EndTime "15:48:41 PDT"]
[Termination "MagnusCarlsen won by resignation"]

1. d4 {[%clk 0:02:59.8]} 1... d5 {[%clk 0:02:59]} 2. c4 {[%clk 0:03:00]} 2... e6
{[%clk 0:02:58.8]} 3. Nf3 {[%clk 0:03:00.1]} 3... c6 {[%clk 0:02:58.7]} 4. Nbd2
{[%clk 0:02:56]} 4... Nf6 {[%clk 0:02:58.5]} 5. g3 {[%clk 0:02:53.8]} 5... c5
{[%clk 0:02:58.6]} 6. dxc5 {[%clk 0:02:48.6]} 6... Bxc5 {[%clk 0:02:58.5]} 7.
Bg2 {[%clk 0:02:49.3]} 7... O-O {[%clk 0:02:59.2]} 8. O-O {[%clk 0:02:48.2]}
8... Nc6 {[%clk 0:02:59.9]} 9. cxd5 {[%clk 0:02:47.9]} 9... exd5 {[%clk
0:03:00.1]} 10. Nb3 {[%clk 0:02:47.4]} 10... Bb6 {[%clk 0:03:00.8]} 11. Nbd4
{[%clk 0:02:43.1]} 11... Re8 {[%clk 0:02:58.2]} 12. Nxc6 {[%clk 0:02:28.7]}
12... bxc6 {[%clk 0:02:58.4]} 13. Qc2 {[%clk 0:02:28.9]} 13... Bd7 {[%clk
0:02:56.8]} 14. b3 {[%clk 0:02:25.8]} 14... Ne4 {[%clk 0:02:56.7]} 15. Bb2
{[%clk 0:02:24.7]} 15... Rc8 {[%clk 0:02:53.8]} 16. Rad1 {[%clk 0:02:20.2]}
16... h5 {[%clk 0:02:52.6]} 17. Qc1 {[%clk 0:02:17.2]} 17... Bg4 {[%clk
0:02:49.9]} 18. Qf4 {[%clk 0:02:06.6]} 18... Qe7 {[%clk 0:02:46.9]} 19. Rde1
{[%clk 0:01:27.6]} 19... c5 {[%clk 0:02:24.7]} 20. h3 {[%clk 0:01:07.5]} 20...
Be6 {[%clk 0:02:23.6]} 21. Qe5 {[%clk 0:00:56.7]} 21... Qf6 {[%clk 0:02:18.4]}
22. Qxf6 {[%clk 0:00:56.7]} 22... Nxf6 {[%clk 0:02:19.3]} 23. Rc1 {[%clk
0:00:41.3]} 23... Ne4 {[%clk 0:02:14.1]} 24. Rfd1 {[%clk 0:00:39.5]} 24... c4
{[%clk 0:02:07.4]} 25. Bd4 {[%clk 0:00:37.7]} 25... Ba5 {[%clk 0:02:02.9]} 26.
bxc4 {[%clk 0:00:31.1]} 26... dxc4 {[%clk 0:02:02.3]} 27. Ne5 {[%clk 0:00:31]}
27... f5 {[%clk 0:01:51.2]} 28. Bxa7 {[%clk 0:00:09.9]} 28... Nc3 {[%clk
0:01:46.8]} 29. Rd2 {[%clk 0:00:07]} 29... Nb5 {[%clk 0:01:46.8]} 30. Rd5 {[%clk
0:00:05.8]} 30... Bxd5 {[%clk 0:01:45]} 31. Bxd5+ {[%clk 0:00:06.7]} 31... Kh7
{[%clk 0:01:43.8]} 32. Rxc4 {[%clk 0:00:06.2]} 32... Nxa7 {[%clk 0:01:33.2]} 33.
Ra4 {[%clk 0:00:05.6]} 33... Rxe5 {[%clk 0:01:32.3]} 34. Rxa5 {[%clk 0:00:06]}
34... Nc6 {[%clk 0:01:29]} 35. Rc5 {[%clk 0:00:06.4]} 35... Rd8 {[%clk
0:01:28.7]} 0-1